bitfinex/quotes_SOLUSD_20260103
["timestamp","ask_amount","ask_price","bid_price","bid_amount"]
[1767452198252,0.65365933,131.71,131.68,0.26500884]
[1767452198923,0.65365933,131.71,131.67,7.85975327]
[1767452199120,0.65365933,131.72,131.69,0.26500884]
[1767452199741,0.65365933,131.72,131.68,7.59391898]
[1767452199949,0.65365933,131.72,131.68,7.85892782]
[1767452200143,5.77291086,131.71,131.68,7.85892782]
[1767452200442,0.65365933,131.71,131.68,7.85892782]
[1767452200644,0.65365933,131.71,131.68,7.59391898]
[1767452200950,0.65365933,131.71,131.68,7.85892782]
[1767452201547,0.65365933,131.71,131.68,7.59391898]
[1767452201729,0.65365933,131.71,131.68,7.85892782]
[1767452202229,3.48859641,131.69,131.65,7.83292324]
[1767452202423,3.48859641,131.69,131.66,7.59523374]
[1767452202424,0.65365933,131.69,131.66,7.59523374]
[1767452202850,0.65365933,131.69,131.67,7.59470342]
[1767452203147,0.65365933,131.69,131.67,6.83724763]
[1767452203446,0.65365933,131.71,131.68,7.59416767]
[1767452203651,5.11944223,131.7,131.68,7.59416767]
[1767452203841,0.65365933,131.72,131.68,10.42910475]
[1767452204351,0.65365933,131.72,131.69,0.71987912]
[1767452206032,0.65365933,131.72,131.69,7.5933142]
[1767452206241,0.65228727,131.71,131.67,0.71987912]
[1767452206430,0.65364561,131.7,131.67,7.59455645]
[1767452207154,0.65230086,131.69,131.67,7.59455645]
[1767452207449,0.65230086,131.69,131.66,0.71987912]
[1767452207450,0.65230086,131.69,131.66,7.59531864]
[1767452207630,0.65230086,131.69,131.66,8.31519776]
[1767452214653,0.65365933,131.7,131.67,0.71987912]
[1767452216652,3.48859641,131.7,131.67,0.71987912]
[1767452217058,0.65365933,131.7,131.67,8.31459186]
[1767452219338,0.65365933,131.7,131.66,2.83493708]
[1767452221153,0.65365933,131.7,131.67,7.59471274]
[1767452221371,4.59975712,131.76,131.7,0.72229966]
[1767452221539,0.65643869,131.76,131.73,2.83493708]
[1767452221959,0.65643869,131.78,131.74,2.83493708]
[1767452222378,0.65643869,131.78,131.75,2.83493708]
[1767452222577,0.65643869,131.8,131.76,2.83493708]
[1767452222858,0.65643869,131.8,131.77,2.83493708]
[1767452223436,0.65643869,131.8,131.77,10.4237424]
[1767452223660,0.65643869,131.8,131.77,10.66902825]
[1767452225249,0.65643869,131.8,131.77,24.52902825]
[1767452226346,0.65643869,131.8,131.77,21.69409117]
[1767452226664,0.65643869,131.8,131.77,14.10486651]
[1767452226868,0.65643869,131.8,131.77,6.51562817]
[1767452227059,0.65643869,131.8,131.76,2.83493708]
[1767452228044,0.65643869,131.8,131.77,6.15e-06]
[1767452228555,0.65643869,131.79,131.75,13.86]
[1767452228764,0.65643869,131.79,131.75,2.83493708]
[1767452229572,0.65643869,131.78,131.74,10.42564605]
[1767452229744,0.65643869,131.78,131.75,2.83493708]
[1767452229944,0.65643869,131.78,131.75,2.74728727]
[1767452230158,0.65643869,131.78,131.74,7.59070897]
[1767452230360,0.65643869,131.78,131.75,2.83493708]
[1767452230567,0.65643869,131.78,131.73,7.59116163]
[1767452230871,0.65643869,131.78,131.74,2.83493708]
[1767452232067,8.24488036,131.78,131.74,2.83493708]
[1767452232245,0.65643869,131.77,131.73,10.42609871]
[1767452234066,0.65643869,131.77,131.74,2.83493708]
[1767452234448,0.65643869,131.77,131.74,1.81239283]
[1767452235349,0.65643869,131.77,131.73,9.40355446]
[1767452235869,0.65643869,131.77,131.74,7.59069245]
[1767452236168,0.65643869,131.77,131.73,9.40350657]
[1767452241184,0.65643869,131.77,131.72,1.81239283]
[1767452243489,0.65643869,131.77,131.73,7.5912852]
[1767452244665,0.65643869,131.77,131.73,9.40367803]
[1767452246700,0.65643869,131.77,131.73,28.38189104]
[1767452246992,0.65643869,131.77,131.74,1.81239283]
[1767452247992,0.65643869,131.77,131.75,7.59013282]
[1767452254269,0.65643869,131.77,131.74,7.59070897]
[1767452256501,0.65643869,131.77,131.73,1.81239283]
[1767452257003,0.65643869,131.77,131.71,26.57353275]
[1767452257177,0.65643869,131.77,131.73,1.81239283]
[1767452258494,0.65643869,131.77,131.74,7.59070897]
[1767452258996,0.6633916,131.78,131.74,28.37987423]
[1767452259695,0.6633916,131.78,131.74,26.5674814]
[1767452259898,0.6633916,131.78,131.74,28.37987423]
[1767452263200,0.6633916,131.77,131.73,1.81239283]
[1767452264999,0.6633916,131.77,131.74,7.59070897]
[1767452266902,0.6633916,131.77,131.73,1.81239283]
[1767452268002,0.6633916,131.77,131.74,7.59070897]
[1767452270905,0.6633916,131.77,131.74,9.4031018]
[1767452271122,13.98600394,131.81,131.77,0.6633916]
[1767452271293,5.1152837,131.8,131.77,0.63595524]
[1767452271609,5.1152837,131.79,131.77,2.44834807]
[1767452271782,0.6633916,131.8,131.77,2.44834807]
[1767452271979,5.1147247,131.79,131.77,2.44834807]
[1767452272211,0.6633916,131.8,131.77,2.44834807]
[1767452272399,5.1150314,131.79,131.77,2.44834807]
[1767452272597,0.6633916,131.8,131.77,2.44834807]
[1767452272798,5.1150314,131.79,131.77,10.03714409]
[1767452273003,0.6633916,131.8,131.77,10.03714409]
[1767452273201,0.6633916,131.8,131.78,1.81239283]
[1767452273890,0.6633916,131.8,131.77,10.03714409]
[1767452278394,0.6633916,131.8,131.77,8.22475126]
[1767452280614,0.6633916,131.8,131.77,7.58879602]
[1767452292324,0.6633916,131.8,131.77,8.22475126]
[1767452293821,0.6633916,131.8,131.78,0.63595524]
[1767452294335,8.27525997,131.81,131.78,0.63595524]
[1767452297039,0.68826453,131.8,131.78,0.63595524]
[1767452297337,0.68826453,131.8,131.77,8.22475126]
[1767452300118,0.68826453,131.8,131.77,7.58879602]
[1767452300318,0.68826453,131.8,131.77,8.22475126]
[1767452305141,0.68826453,131.8,131.76,8.225512]
[1767452307156,0.68826453,131.79,131.76,7.58955676]
[1767452307333,0.11307413,131.79,131.75,7.58989598]
[1767452308148,0.08307414,131.79,131.75,7.58989598]
[1767452309054,0.08307414,131.79,131.75,8.28848745]
[1767452309257,0.08307414,131.79,131.75,11.11907943]
[1767452314428,0.08307414,131.79,131.75,10.42048796]
[1767452314828,0.08307414,131.79,131.76,8.25528354]
[1767452325061,0.68628566,131.8,131.77,0.66594617]
[1767452326662,0.68628566,131.8,131.77,8.25445518]
[1767452327152,0.68628566,131.8,131.78,0.66594617]
[1767452331766,0.68628566,131.8,131.77,7.58850901]
[1767452331967,0.68628566,131.8,131.77,8.25445518]
[1767452338881,0.68628566,131.8,131.77,7.58850901]
[1767452339063,0.68628566,131.8,131.77,8.25883516]
[1767452339373,14.51858967,131.81,131.78,0.67032615]
[1767452340580,7.48770319,131.84,131.79,0.6959998]
[1767452340880,4.65711121,131.84,131.8,0.6959998]
[1767452341461,0.6965502,131.83,131.81,7.58667779]
[1767452341892,3.96056101,131.84,131.81,8.28267759]
[1767452342061,3.96056101,131.84,131.81,11.11326957]
[1767452342263,13.86,131.85,131.81,11.11326957]
[1767452343574,13.86,131.85,131.82,0.6959998]
[1767452343885,14.5565502,131.85,131.82,0.6959998]
[1767452346476,14.5565502,131.85,131.83,8.28152661]
[1767452347587,0.6965502,131.85,131.83,8.28152661]
[1767452348385,17.79894746,131.86,131.83,8.28152661]
[1767452350267,17.79894746,131.86,131.84,0.6959998]
[1767452350686,3.95894746,131.86,131.85,0.6959998]
[1767452350855,3.95894746,131.86,131.82,21.7950422]
[1767452350856,4.32435498,131.86,131.83,0.6959998]
[1767452351060,7.15494696,131.86,131.83,0.6959998]
[1767452352682,4.32435498,131.86,131.83,0.6959998]
[1767452354286,3.95894746,131.86,131.84,0.6959998]
[1767452354685,0.6965502,131.87,131.84,0.6959998]
[1767452354987,20.6292226,131.88,131.85,0.6959998]
[1767452355183,21.3257728,131.88,131.85,0.6959998]
[1767452355486,18.49518082,131.88,131.85,0.6959998]
[1767452356990,3.95863062,131.88,131.86,0.6959998]
[1767452357298,1e-08,131.88,131.87,0.6959998]
[1767452357487,0.6965502,131.94,131.88,0.6959998]
[1767452357668,2.50620823,131.94,131.9,0.6959998]
[1767452357872,0.36209643,131.93,131.9,0.6959998]
[1767452359369,0.36209643,131.93,131.9,8.27741087]
[1767452360299,0.36209643,131.93,131.9,0.6959998]
[1767452362094,9.38894642,131.94,131.9,0.6959998]
[1767452362394,13.34573289,131.95,131.91,0.6959998]
[1767452362582,27.18573289,131.95,131.91,0.6959998]
[1767452362984,23.22848026,131.95,131.91,0.6959998]
[1767452363779,21.41882223,131.95,131.91,7.58087417]
[1767452363978,23.22848026,131.95,131.91,7.58087417]
[1767452364702,21.41882223,131.95,131.91,7.58087417]
[1767452365400,13.84,131.95,131.91,9.3905322]
[1767452365782,0.36209643,131.96,131.92,0.6959998]
[1767452365983,3.95662905,131.98,131.95,0.6959998]
[1767452366193,3.95662905,131.98,131.95,0.66811878]
[1767452366390,0.6965502,132.0,131.95,0.66811878]
[1767452366594,2.29440734,131.99,131.95,0.66811878]
[1767452366777,1.80965803,131.98,131.95,0.66811878]
[1767452367904,9.8709122,131.99,131.95,0.66811878]
[1767452368097,2.29440734,131.99,131.95,8.24650135]
[1767452368597,9.87102666,131.99,131.95,0.66811878]
[1767452368798,1.80965803,131.98,131.95,0.66811878]
[1767452369401,9.87102666,131.99,131.95,0.66811878]
[1767452376422,0.66160148,131.98,131.95,0.66811878]
[1767452379109,0.66160148,131.98,131.95,0.57985426]
[1767452385624,0.60673042,131.97,131.94,0.67106896]
[1767452385829,2.47125951,131.97,131.94,0.67106896]
[1767452389622,0.66160148,131.97,131.94,0.67106896]
[1767452390708,0.66160148,132.0,131.97,0.67106896]
[1767452390912,0.66160148,132.0,131.95,2.48072699]
[1767452391112,0.66160148,132.0,131.96,0.67106896]
[1767452391430,0.60673042,131.99,131.96,0.67106896]
[1767452392936,0.60673042,131.99,131.95,10.05904689]
[1767452397837,0.60727365,131.97,131.94,0.67106896]
[1767452398039,2.47125951,131.99,131.95,8.24968366]
[1767452398335,2.47125951,131.99,131.96,0.67106896]
[1767452398741,0.66160148,131.99,131.96,0.67106896]
[1767452400540,22.07254019,132.0,131.96,0.67106896]
[1767452400727,3.95534809,132.01,131.98,0.71996064]
[1767452401044,4.56696911,132.01,131.98,0.71996064]
[1767452401340,6.37662714,132.01,131.98,0.71996064]
[1767452401937,0.65621107,132.0,131.97,0.71996064]
[1767452403246,8.23201282,132.0,131.97,0.71996064]
[1767452404336,0.61250395,131.97,131.94,0.71996064]
[1767452404547,2.42216198,131.97,131.94,0.71996064]
[1767452404843,2.42216198,131.97,131.91,0.71996064]
[1767452404844,0.65491292,131.94,131.91,0.71996064]
[1767452405038,2.46631951,131.95,131.92,0.71996064]
[1767452409635,0.61162101,131.94,131.91,8.30088125]
[1767452410050,1.80965803,131.95,131.92,0.71996064]
[1767452410243,2.42127904,131.95,131.92,0.71996064]
[1767452412459,9.99993264,131.95,131.92,0.71996064]
[1767452413733,2.42127904,131.95,131.92,0.71996064]
[1767452414841,1.80965803,131.94,131.92,0.71996064]
[1767452416753,0.61206691,131.93,131.91,7.58092061]
[1767452416935,3.48166368,131.94,131.91,8.30088125]
[1767452417659,0.61162101,131.93,131.91,7.58092061]
[1767452417947,3.48166368,131.94,131.91,8.30088125]
[1767452418148,2.8250022,131.93,131.91,8.30088125]
[1767452418354,3.48166368,131.94,131.91,8.30088125]
[1767452419257,2.8250022,131.93,131.91,0.71996064]
[1767452420150,0.61206691,131.91,131.88,8.3022698]
[1767452420450,0.58206692,131.91,131.88,8.3022698]
[1767452420656,2.8250022,131.91,131.88,8.3022698]
[1767452420836,2.8250022,131.91,131.89,0.71996064]
[1767452421560,2.8250022,131.92,131.89,0.71996064]
[1767452422664,3.40766315,131.9,131.87,0.71996064]
[1767452422963,2.8250022,131.9,131.87,0.71996064]
[1767452423562,11.06274629,131.91,131.87,8.30300173]
[1767452423942,2.8250022,131.9,131.87,8.30300173]
[1767452424763,10.98846451,131.9,131.87,0.71996064]
[1767452425066,0.65591408,131.89,131.86,8.30353652]
[1767452425570,0.58266095,131.88,131.86,7.58357588]
[1767452425742,3.48166368,131.89,131.86,8.30353652]
[1767452426960,2.8250022,131.89,131.86,8.30353652]
[1767452427764,2.8250022,131.89,131.84,21.78735658]
[1767452427765,2.8250022,131.89,131.87,0.71996064]
[1767452428468,0.65666148,131.9,131.87,0.71996064]
[1767452428674,3.48166368,131.9,131.87,0.71996064]
[1767452430073,2.8250022,131.89,131.87,0.71996064]
[1767452435275,2.8250022,131.9,131.87,0.71996064]
[1767452436178,3.50463612,131.9,131.87,0.71996064]
[1767452436380,3.50463612,131.9,131.86,8.30669993]
[1767452436560,0.68086293,131.9,131.87,8.30606396]
[1767452436760,16.6650022,131.91,131.88,0.72304251]
[1767452437077,17.22296379,131.91,131.88,0.72304251]
[1767452438286,17.34586513,131.91,131.87,0.72304251]
[1767452440485,2.8250022,131.9,131.88,0.72304251]
[1767452441690,0.67963392,131.89,131.87,7.58294764]
[1767452441880,3.50586513,131.9,131.87,8.30599015]
[1767452443789,2.8250022,131.9,131.88,0.72304251]
[1767452449797,3.38296379,131.9,131.87,0.72304251]
[1767452451085,3.38418051,131.88,131.84,8.30777208]
[1767452451391,2.8250022,131.87,131.84,8.30777208]
[1767452451565,2.8250022,131.87,131.85,0.72304251]
[1767452452571,8.14195152,131.88,131.85,0.72304251]
[1767452452572,2.8250022,131.86,131.85,0.72304251]
[1767452452771,2.8250022,131.87,131.85,0.72304251]
[1767452456997,2.8250022,131.86,131.85,0.72304251]
[1767452458290,2.8250022,131.86,131.84,8.30777208]
[1767452458998,2.8250022,131.86,131.85,0.72304251]
[1767452460499,2.8250022,131.86,131.84,0.67024277]
[1767452460789,2.8250022,131.85,131.84,0.67024277]
[1767452461577,2.8250022,131.86,131.84,0.67024277]
[1767452463396,2.8250022,131.85,131.84,0.67024277]
[1767452466304,2.1000022,131.85,131.81,26.55276586]
[1767452466501,7.58329142,131.87,131.81,26.55276586]
[1767452466708,2.8250022,131.85,131.81,26.55276586]
[1767452472015,3.51275355,131.86,131.81,26.55276586]
[1767452472813,0.68775135,131.86,131.81,26.55276586]
[1767452473113,3.51275355,131.86,131.81,29.37776806]
[1767452473288,41.85002655,131.96,131.84,3.49524497]
[1767452473614,2.8250022,131.91,131.85,3.49524497]
[1767452474006,2.8250022,131.91,131.86,0.67024277]
[1767452474386,2.8250022,131.9,131.86,0.67024277]
[1767452474822,2.8250022,131.9,131.86,8.25357959]
[1767452475505,3.51275355,131.9,131.86,8.25357959]
[1767452476505,2.49698059,131.9,131.86,8.25357959]
[1767452478613,1.80922924,131.88,131.86,0.67024277]
[1767452479002,2.49698059,131.88,131.85,0.67024277]
[1767452480915,2.49698059,131.9,131.86,0.67024277]
[1767452481419,10.07883637,131.9,131.86,0.67024277]
[1767452481717,0.68775135,131.9,131.86,0.67024277]
[1767452481899,2.49698059,131.9,131.86,0.67024277]
[1767452483121,0.68775135,131.89,131.87,7.5832259]
[1767452484498,0.68775135,131.89,131.85,27.21555941]
[1767452484692,2.49698059,131.9,131.86,0.67024277]
[1767452484898,0.68775135,131.89,131.86,0.67024277]
[1767452485719,2.49698059,131.9,131.87,0.67024277]
[1767452487007,2.49698059,131.89,131.86,8.25347977]
[1767452490797,0.71934432,131.89,131.86,0.68775135]
[1767452490998,0.71934432,131.9,131.85,42.88229723]
[1767452491322,0.71934432,131.9,131.86,2.49698059]
[1767452491615,0.71934432,131.9,131.87,0.68775135]
[1767452492213,0.71934432,131.9,131.88,7.58265089]
[1767452494123,0.71934432,131.9,131.87,8.27082787]
[1767452494424,0.71934432,131.89,131.86,8.27136235]
[1767452495613,2.52857356,131.9,131.87,0.68775135]
[1767452496536,0.71934432,131.89,131.86,0.68775135]
[1767452497522,10.11013944,131.9,131.86,0.68775135]
[1767452497903,10.11013944,131.9,131.87,0.68775135]
[1767452500934,2.52857356,131.88,131.85,0.68775135]
[1767452501134,0.71934432,131.87,131.84,8.27248511]
[1767452503442,2.52857356,131.87,131.84,8.27248511]
[1767452504132,2.52857356,131.87,131.83,8.27327816]
[1767452504133,0.71934432,131.86,131.83,8.27327816]
[1767452504833,10.11195233,131.87,131.83,8.27327816]
[1767452506139,0.71934432,131.85,131.83,7.58552681]
[1767452506433,0.68934433,131.85,131.83,7.58552681]
[1767452506641,1.80922924,131.86,131.83,8.2939024]
[1767452507317,26.53806007,131.89,131.83,8.2939024]
[1767452507516,1.80922924,131.86,131.83,8.2939024]
[1767452508309,2.52857356,131.86,131.83,8.2939024]
[1767452508830,0.71934432,131.86,131.83,8.2939024]
[1767452512649,2.52857356,131.86,131.83,8.2939024]
[1767452513846,0.71934432,131.85,131.82,8.29447785]
[1767452514156,0.68934433,131.85,131.82,8.29447785]
[1767452514648,1.80922924,131.86,131.83,0.70837559]
[1767452515546,1.80922924,131.86,131.83,8.29387956]
[1767452516047,2.52857356,131.86,131.83,8.29387956]
[1767452516848,0.71934432,131.85,131.82,7.58610226]
[1767452517652,0.71934432,131.85,131.82,8.29447785]
[1767452519847,2.52857356,131.86,131.83,0.70837559]
[1767452520951,0.68597488,131.85,131.82,8.29625132]
[1767452521266,2.49520412,131.85,131.82,8.29625132]
[1767452521444,1.80922924,131.88,131.81,0.71014906]
[1767452521636,1.80922924,131.86,131.82,0.71014906]
[1767452522080,7.58265089,131.88,131.83,0.71014906]
[1767452522238,9.39188013,131.88,131.84,0.71014906]
[1767452522554,7.58265089,131.88,131.84,0.71014906]
[1767452522732,9.39188013,131.88,131.84,0.71014906]
[1767452522937,7.58265089,131.88,131.84,0.71014906]
[1767452523168,3.95688741,131.89,131.85,0.71014906]
[1767452523449,4.64286229,131.89,131.86,8.29395006]
[1767452524239,0.68597488,131.87,131.84,0.71014906]
[1767452524443,0.68597488,131.86,131.84,0.71014906]
[1767452525268,0.68597488,131.86,131.83,8.29529409]
[1767452526840,0.68597488,131.86,131.83,7.58514503]
[1767452527039,0.68597488,131.86,131.83,8.29529409]
[1767452527958,2.49520412,131.87,131.84,0.71014906]
[1767452528860,3.95688741,131.89,131.86,0.71014906]
[1767452529241,0.68597488,131.9,131.86,0.71014906]
[1767452530238,0.68597488,131.9,131.87,8.29337496]
[1767452530658,2.49520412,131.91,131.88,0.71014906]
[1767452530844,1.80922924,131.91,131.88,0.68268112]
[1767452531045,1.80922924,131.91,131.88,0.65014906]
[1767452531245,2.49520412,131.91,131.88,0.65014906]
[1767452531763,2.49520412,131.91,131.88,8.23278599]
[1767452533766,0.68597488,131.91,131.88,8.23278599]
[1767452533958,2.49520412,131.91,131.88,8.23278599]
[1767452535047,2.49520412,131.91,131.88,0.65014906]
[1767452535566,2.49520412,131.9,131.87,0.71014906]
[1767452538477,3.51291803,131.9,131.87,0.71014906]
[1767452540970,3.51291803,131.9,131.86,7.5834326]
[1767452540971,0.68597488,131.89,131.86,8.29358166]
[1767452541475,3.51291803,131.9,131.87,0.71014906]
[1767452546972,0.68597488,131.89,131.86,0.71014906]
[1767452548064,0.68597488,131.89,131.86,8.29395004]
[1767452548376,22.10700027,131.91,131.87,0.71014906]
[1767452548756,24.93394342,131.91,131.87,0.71014906]
[1767452549080,11.09394342,131.91,131.88,0.71014906]
[1767452550579,3.51291803,131.91,131.88,0.71014906]
[1767452554763,3.4960414,131.9,131.87,0.66821147]
[1767452555088,0.66909825,131.89,131.86,0.66821147]
[1767452555277,3.4960414,131.89,131.86,0.66821147]
[1767452556399,3.4960414,131.87,131.84,0.66821147]
[1767452560282,0.66909825,131.86,131.83,7.58517926]
[1767452560481,0.63909826,131.86,131.83,8.25339073]
[1767452560692,3.46604141,131.86,131.83,0.66821147]
[1767452561299,10.4107519,131.86,131.83,0.66821147]
[1767452562497,11.07985015,131.86,131.83,0.66821147]
[1767452562899,0.66909825,131.85,131.82,8.25408849]
[1767452563197,0.63909826,131.85,131.82,8.25408849]
[1767452564101,0.63909826,131.85,131.83,0.66821147]
[1767452564694,0.60909827,131.85,131.83,0.66821147]
[1767452565603,0.60909827,131.85,131.83,8.25363537]
[1767452565787,2.82694315,131.86,131.83,8.25363537]
[1767452565987,10.41037799,131.87,131.83,8.25363537]
[1767452566304,10.41037799,131.87,131.84,0.66821147]
[1767452566473,10.41037799,131.87,131.83,8.25363537]
[1767452566675,0.66909825,131.86,131.83,8.25363537]
[1767452569473,3.4960414,131.86,131.83,8.25363537]
[1767452573499,0.66909825,131.86,131.83,8.25363537]
[1767452573705,3.4960414,131.86,131.83,8.25363537]
[1767452574206,0.66909825,131.85,131.82,8.25431373]
[1767452574504,0.63909826,131.85,131.82,8.25431373]
[1767452574692,2.82694315,131.86,131.83,0.66821147]
[1767452576104,7.58343484,131.87,131.83,8.25368566]
[1767452576281,3.4960414,131.86,131.83,8.25368566]
[1767452578005,0.66909825,131.85,131.83,0.66821147]
[1767452578309,0.66909825,131.85,131.82,8.2542497]
[1767452578510,0.63909826,131.85,131.82,8.2542497]
[1767452578711,0.63909826,131.85,131.83,0.66821147]
[1767452580220,2.82694315,131.86,131.83,8.25365663]
[1767452580386,3.54909618,131.86,131.83,8.25365663]
[1767452581314,3.54909618,131.86,131.83,0.66821147]
[1767452581492,2.82694315,131.88,131.84,0.72485236]
[1767452581813,17.38909618,131.88,131.84,0.72485236]
[1767452582020,0.72215303,131.87,131.84,0.72485236]
[1767452582204,0.72215303,131.87,131.84,8.30945777]
[1767452582389,0.72215303,131.87,131.85,0.72485236]
[1767452583311,0.72215303,131.86,131.83,0.72485236]
[1767452583622,0.72215303,131.86,131.83,8.31020959]
[1767452584624,0.72215303,131.85,131.83,7.58535723]
[1767452584814,2.82694315,131.86,131.83,8.31020959]
[1767452585322,2.82694315,131.87,131.83,8.31020959]
[1767452586823,0.72215303,131.86,131.83,8.31020959]
[1767452587000,0.72215303,131.86,131.83,7.58535723]
[1767452590315,0.72215303,131.86,131.83,8.31020959]
[1767452598735,3.54909618,131.86,131.83,8.31020959]
[1767452598938,0.7168796,131.85,131.82,0.72485236]
[1767452599147,0.6868796,131.85,131.82,8.31077318]
[1767452599619,0.65687958,131.85,131.82,8.31077318]
[1767452599823,0.65687958,131.85,131.81,8.31128234]
[1767452600211,3.48382273,131.85,131.82,0.72485236]
[1767452600636,2.46742591,131.85,131.82,0.72485236]
[1767452602032,1.81054633,131.85,131.82,0.72485236]
[1767452602337,2.46802591,131.85,131.82,0.72485236]
[1767452602742,0.72150629,131.84,131.82,0.72485236]
[1767452603037,0.69150629,131.84,131.82,0.72485236]
[1767452603818,1.81054633,131.85,131.82,8.31093126]
[1767452604019,9.39435557,131.86,131.83,0.72485236]
[1767452604526,9.39435557,131.86,131.82,8.31093126]
[1767452604945,0.72215303,131.85,131.82,8.31093126]
[1767452607819,0.72215303,131.85,131.82,7.5860789]
[1767452608020,0.72215303,131.85,131.82,8.31093126]
[1767452610025,0.72215303,131.85,131.82,7.5860789]
[1767452611132,0.72215303,131.85,131.82,8.29766159]
[1767452621027,0.72215303,131.85,131.83,0.71158269]
[1767452622138,0.72215303,131.85,131.82,8.29766159]
[1767452622854,0.72215303,131.85,131.83,0.71158269]
[1767452623056,0.72215303,131.85,131.82,7.5860789]
[1767452623243,0.72215303,131.85,131.82,8.29766159]
[1767452623857,0.72215303,131.85,131.81,8.29826048]
[1767452625153,0.62777958,131.84,131.81,8.29826048]
[1767452625334,0.59777958,131.84,131.81,8.29826048]
[1767452628554,1.81054633,131.85,131.7,43.84]
[1767452628555,0.65296818,131.81,131.7,43.84]
[1767452628735,28.05696308,131.83,131.7,43.84]
[1767452628736,2.46383577,131.8,131.75,1.81054633]
[1767452629049,0.65297139,131.79,131.75,15.65054633]
[1767452629646,0.65297139,131.79,131.76,7.58917272]
[1767452630350,0.65328626,131.78,131.76,7.58917272]
[1767452630536,1.81054633,131.79,131.76,7.58917272]
[1767452631055,1.81054633,131.82,131.77,2.52212902]
[1767452631950,9.39664859,131.82,131.77,8.30027217]
[1767452632329,9.39664859,131.82,131.77,10.1108185]
[1767452632556,0.55957025,131.81,131.78,13.84]
[1767452633453,9.95638954,131.82,131.78,14.55158269]
[1767452633754,0.55957025,131.84,131.81,1.81054633]
[1767452633957,0.55957025,131.84,131.81,15.65054633]
[1767452635747,0.55957025,131.84,131.81,23.94856035]
[1767452637778,0.55957025,131.85,131.81,23.94856035]
[1767452638555,27.11422094,131.86,131.82,0.71158269]
[1767452638752,9.95409588,131.86,131.82,0.71158269]
[1767452643678,1.90954633,131.85,131.82,0.71158269]
[1767452644265,0.55496454,131.84,131.81,21.42643133]
[1767452644444,0.55496454,131.84,131.81,22.08502885]
[1767452644644,9.95456552,131.85,131.81,22.08502885]
[1767452645458,8.14401919,131.85,131.81,22.08502885]
[1767452645654,9.95456552,131.85,131.81,22.08502885]
[1767452649067,0.099,131.84,131.81,22.08502885]
[1767452655301,2.37011658,131.85,131.82,0.65859752]
[1767452658299,0.55957025,131.85,131.82,0.65859752]
[1767452664598,3.38861104,131.85,131.82,0.65859752]
[1767452665281,0.099,131.84,131.82,0.65859752]
[1767452665800,10.97299598,131.85,131.82,0.65859752]
[1767452665997,0.099,131.84,131.81,21.42643133]
[1767452666206,0.099,131.84,131.81,22.08502885]
[1767452666501,10.97299598,131.85,131.82,0.65859752]
[1767452668213,0.099,131.84,131.82,0.65859752]
[1767452669280,0.099,131.84,131.81,22.08502885]
[1767452671507,0.099,131.84,131.81,21.42643133]
[1767452674332,0.55496454,131.83,131.81,21.42643133]
[1767452676431,0.55496454,131.83,131.81,13.84]
[1767452676915,10.4142981,131.84,131.81,14.49847472]
[1767452677533,10.97386835,131.84,131.81,14.49847472]
[1767452679624,14.93116994,131.84,131.81,14.49847472]
[1767452682433,12.10212915,131.84,131.81,14.49847472]
[1767452682619,14.93116994,131.84,131.81,14.49847472]
[1767452686033,14.93116994,131.84,131.81,14.43847472]
[1767452687841,14.93116994,131.84,131.81,0.65847472]
[1767452688617,14.93116994,131.84,131.8,8.80699268]
[1767452688618,0.55496454,131.82,131.8,8.80699268]
[1767452688813,0.10355965,131.81,131.78,14.49847472]
[1767452689025,2.93260044,131.81,131.79,0.65847472]
[1767452689225,10.41585389,131.81,131.79,0.65847472]
[1767452700450,3.38400533,131.8,131.77,0.7167397]
[1767452701148,0.55496454,131.8,131.77,0.7167397]
[1767452703462,0.10355965,131.79,131.77,0.7167397]
[1767452704028,2.93260044,131.79,131.76,14.5567397]
[1767452704234,26.5555594,131.8,131.74,0.7167397]
[1767452704235,3.37949128,131.78,131.74,0.7167397]
[1767452704433,2.7990408,131.77,131.74,0.7167397]
[1767452704835,0.55957025,131.78,131.74,0.7167397]
[1767452704836,3.38861104,131.78,131.74,0.7167397]
[1767452706249,10.97750954,131.78,131.74,0.7167397]
[1767452707830,10.5171899,131.77,131.74,0.7167397]
[1767452708145,2.92804079,131.76,131.73,0.7167397]
[1767452710149,7.68883521,131.76,131.73,0.7167397]
[1767452710355,10.517876,131.76,131.73,0.7167397]
[1767452717978,3.38400533,131.75,131.72,0.7167397]
[1767452718258,0.10355965,131.74,131.71,0.7167397]
[1767452718438,0.55045049,131.73,131.7,0.7167397]
[1767452718642,0.55045049,131.73,131.69,7.59338178]
[1767452718643,2.82904079,131.72,131.69,0.7167397]
[1767452718839,3.38400533,131.72,131.69,0.7167397]
[1767452719060,7.59186152,131.72,131.69,0.7167397]
[1767452719250,2.82904079,131.73,131.69,0.7167397]
[1767452719743,2.82904079,131.72,131.69,0.7167397]
[1767452720356,7.5912852,131.73,131.69,0.7167397]
[1767452720563,10.42032599,131.73,131.69,0.7167397]
[1767452720863,7.59076401,131.74,131.7,0.7167397]
[1767452721060,24.27802158,131.77,131.73,0.7167397]
[1767452722454,7.58974531,131.76,131.73,0.7167397]
[1767452722861,9.4026781,131.76,131.73,0.7167397]
[1767452725560,1.81293279,131.75,131.71,0.7167397]